{"text_format":"1","workbook":"xlsx","n_sheets":5,"sheets":["集合写真（様式第18号）11","集合写真（様式第18号）12","集合写真（様式第18号）13","集合写真（様式第18号）14","集合写真（様式第18号）15"],"not_rendered":{"charts":0,"images":0,"macros":1,"external_links":0,"defined_names":5,"comments":0,"pivot_tables":0},"unopened":[],"bounds":{"document_bytes":16777216,"sheet_cells":100000,"rows_first":2000,"rows_last":500,"rows_between":2000,"halvings":0,"cell_chars":16384,"cell_head_chars":4096},"cells_cut":0,"cells_raw":0,"read":"whole","date_system":"1900"}

{"sheet":"集合写真（様式第18号）11","index":0,"n_rows":55,"n_cols":23,"rows_kept":55,"cut":false,"hidden":false,"merged":[[0,1,0,7],[2,1,2,24],[4,15,4,17],[4,18,4,24],[5,15,5,17],[5,18,5,24],[8,15,8,20],[8,21,8,24],[9,15,9,20],[9,21,9,24],[10,15,10,20],[18,21,18,24],[19,15,19,20],[19,21,19,24],[20,15,20,20],[6,5,6,6],[10,21,10,24],[11,15,14,15],[11,16,11,20],[12,16,12,20],[13,16,13,20],[13,23,13,24],[14,16,14,20],[7,1,14,10],[7,12,7,14],[7,15,7,24],[8,12,14,14],[29,15,29,20],[29,21,29,24],[30,15,30,20],[16,5,16,6],[20,21,20,24],[21,15,24,15],[21,16,21,20],[22,16,22,20],[23,16,23,20],[23,23,23,24],[24,16,24,20],[17,1,24,10],[17,12,17,14],[17,15,17,24],[18,12,24,14],[18,15,18,20],[39,21,39,24],[40,15,40,20],[26,5,26,6],[30,21,30,24],[31,15,34,15],[31,16,31,20],[32,16,32,20],[33,16,33,20],[33,23,33,24],[34,16,34,20],[27,1,34,10],[27,12,27,14],[27,15,27,24],[28,12,34,14],[28,15,28,20],[28,21,28,24],[36,5,36,6],[45,15,45,20],[40,21,40,24],[41,15,44,15],[41,16,41,20],[42,16,42,20],[43,16,43,20],[43,23,43,24],[44,16,44,20],[37,1,44,10],[37,12,37,14],[37,15,37,24],[38,12,44,14],[38,15,38,20],[38,21,38,24],[39,15,39,20]]}
[null,"（別紙３　様式第18号）"]
[null,"令和6年度　森林・山村多面的機能発揮対策交付金"]
[null,"活動記録兼作業写真整理帳（活動日毎の集合写真）"]
[]
[null,null,null,null,null,null,null,null,null,null,null,null,null,null,null,"№：",null,null,11]
[null,null,null,null,null,null,null,null,null,null,null,null,null,null,null,"組織名："]
[null,null,null,null,"　日　付：","令和6年",null,null,"月",null,"日"]
[null,"ダブルクリックで写真を選択",null,null,null,null,null,null,null,null,null,null,"活動項目"]
[null,null,null,null,null,null,null,null,null,null,null,null,"取組内容",null,null,"活動場所"]
[null,null,null,null,null,null,null,null,null,null,null,null,null,null,null,"活動内容"]
[null,null,null,null,null,null,null,null,null,null,null,null,null,null,null,"実施時間"]
[null,null,null,null,null,null,null,null,null,null,null,null,null,null,null,"活動参加人数","構成員",null,null,null,null,null,"名"]
[null,null,null,null,null,null,null,null,null,null,null,null,null,null,null,null,"構成員以外",null,null,null,null,null,"名"]
[null,null,null,null,null,null,null,null,null,null,null,null,null,null,null,null,"合　計",null,null,null,null,{"$f":"SUM(V12:V13)","v":0},"名"]
[null,null,null,null,null,null,null,null,null,null,null,null,null,null,null,null,"うち地域外関係者",null,null,null,null,null,"名"]
[]
[null,null,null,null,"　日　付：","令和6年",null,null,"月",null,"日"]
[null,"ダブルクリックで写真を選択",null,null,null,null,null,null,null,null,null,null,"活動項目"]
[null,null,null,null,null,null,null,null,null,null,null,null,"取組内容",null,null,"活動場所"]
[null,null,null,null,null,null,null,null,null,null,null,null,null,null,null,"活動内容"]
[null,null,null,null,null,null,null,null,null,null,null,null,null,null,null,"実施時間"]
[null,null,null,null,null,null,null,null,null,null,null,null,null,null,null,"活動参加人数","構成員",null,null,null,null,null,"名"]
[null,null,null,null,null,null,null,null,null,null,null,null,null,null,null,null,"構成員以外",null,null,null,null,null,"名"]
[null,null,null,null,null,null,null,null,null,null,null,null,null,null,null,null,"合　計",null,null,null,null,{"$f":"SUM(V22:V23)","v":0},"名"]
[null,null,null,null,null,null,null,null,null,null,null,null,null,null,null,null,"うち地域外関係者",null,null,null,null,null,"名"]
[]
[null,null,null,null,"　日　付：","令和6年",null,null,"月",null,"日"]
[null,"ダブルクリックで写真を選択",null,null,null,null,null,null,null,null,null,null,"活動項目"]
[null,null,null,null,null,null,null,null,null,null,null,null,"取組内容",null,null,"活動場所"]
[null,null,null,null,null,null,null,null,null,null,null,null,null,null,null,"活動内容"]
[null,null,null,null,null,null,null,null,null,null,null,null,null,null,null,"実施時間"]
[null,null,null,null,null,null,null,null,null,null,null,null,null,null,null,"活動参加人数","構成員",null,null,null,null,null,"名"]
[null,null,null,null,null,null,null,null,null,null,null,null,null,null,null,null,"構成員以外",null,null,null,null,null,"名"]
[null,null,null,null,null,null,null,null,null,null,null,null,null,null,null,null,"合　計",null,null,null,null,{"$f":"SUM(V32:V33)","v":0},"名"]
[null,null,null,null,null,null,null,null,null,null,null,null,null,null,null,null,"うち地域外関係者",null,null,null,null,null,"名"]
[]
[null,null,null,null,"　日　付：","令和6年",null,null,"月",null,"日"]
[null,"ダブルクリックで写真を選択",null,null,null,null,null,null,null,null,null,null,"活動項目"]
[null,null,null,null,null,null,null,null,null,null,null,null,"取組内容",null,null,"活動場所"]
[null,null,null,null,null,null,null,null,null,null,null,null,null,null,null,"活動内容"]
[null,null,null,null,null,null,null,null,null,null,null,null,null,null,null,"実施時間"]
[null,null,null,null,null,null,null,null,null,null,null,null,null,null,null,"活動参加人数","構成員",null,null,null,null,null,"名"]
[null,null,null,null,null,null,null,null,null,null,null,null,null,null,null,null,"構成員以外",null,null,null,null,null,"名"]
[null,null,null,null,null,null,null,null,null,null,null,null,null,null,null,null,"合　計",null,null,null,null,{"$f":"SUM(V42:V43)","v":0},"名"]
[null,null,null,null,null,null,null,null,null,null,null,null,null,null,null,null,"うち地域外関係者",null,null,null,null,null,"名"]
[null,"活動項目"]
[null,"①：活動推進費"]
[null,"②：地域環境保全タイプ（里山林保全）"]
[null,"③：地域環境保全タイプ（侵入竹除去・竹林整備）"]
[null,"④：森林資源利用タイプ　　　"]
[null,"⑤：森林機能強化タイプ　"]
[null,"⑥：関係人口創出・維持タイプ"]
[]
[null,"撮影者含む"]
[null,"　　　　　"]

{"sheet":"集合写真（様式第18号）12","index":1,"n_rows":55,"n_cols":23,"rows_kept":55,"cut":false,"hidden":false,"merged":[[45,15,45,20],[40,21,40,24],[41,15,44,15],[41,16,41,20],[42,16,42,20],[43,16,43,20],[43,23,43,24],[44,16,44,20],[33,16,33,20],[33,23,33,24],[34,16,34,20],[36,5,36,6],[37,1,44,10],[37,12,37,14],[37,15,37,24],[38,12,44,14],[38,15,38,20],[38,21,38,24],[39,15,39,20],[39,21,39,24],[40,15,40,20],[23,23,23,24],[24,16,24,20],[26,5,26,6],[27,1,34,10],[27,12,27,14],[27,15,27,24],[28,12,34,14],[28,15,28,20],[28,21,28,24],[29,15,29,20],[29,21,29,24],[30,15,30,20],[30,21,30,24],[31,15,34,15],[31,16,31,20],[32,16,32,20],[14,16,14,20],[16,5,16,6],[17,1,24,10],[17,12,17,14],[17,15,17,24],[18,12,24,14],[18,15,18,20],[18,21,18,24],[19,15,19,20],[19,21,19,24],[20,15,20,20],[20,21,20,24],[21,15,24,15],[21,16,21,20],[22,16,22,20],[23,16,23,20],[6,5,6,6],[7,1,14,10],[7,12,7,14],[7,15,7,24],[8,12,14,14],[8,15,8,20],[8,21,8,24],[9,15,9,20],[9,21,9,24],[10,15,10,20],[10,21,10,24],[11,15,14,15],[11,16,11,20],[12,16,12,20],[13,16,13,20],[13,23,13,24],[0,1,0,7],[2,1,2,24],[4,15,4,17],[4,18,4,24],[5,15,5,17],[5,18,5,24]]}
[null,"（別紙３　様式第18号）"]
[null,"令和6年度　森林・山村多面的機能発揮対策交付金"]
[null,"活動記録兼作業写真整理帳（活動日毎の集合写真）"]
[]
[null,null,null,null,null,null,null,null,null,null,null,null,null,null,null,"№：",null,null,{"$f":"'集合写真（様式第18号）11'!S5:Y5+1","v":12}]
[null,null,null,null,null,null,null,null,null,null,null,null,null,null,null,"組織名：",null,null,{"$f":"'集合写真（様式第18号）11'!S6:Y6","v":0}]
[null,null,null,null,"　日　付：","令和6年",null,null,"月",null,"日"]
[null,"ダブルクリックで写真を選択",null,null,null,null,null,null,null,null,null,null,"活動項目"]
[null,null,null,null,null,null,null,null,null,null,null,null,"取組内容",null,null,"活動場所"]
[null,null,null,null,null,null,null,null,null,null,null,null,null,null,null,"活動内容"]
[null,null,null,null,null,null,null,null,null,null,null,null,null,null,null,"実施時間"]
[null,null,null,null,null,null,null,null,null,null,null,null,null,null,null,"活動参加人数","構成員",null,null,null,null,null,"名"]
[null,null,null,null,null,null,null,null,null,null,null,null,null,null,null,null,"構成員以外",null,null,null,null,null,"名"]
[null,null,null,null,null,null,null,null,null,null,null,null,null,null,null,null,"合　計",null,null,null,null,{"$f":"SUM(V12:V13)","v":0},"名"]
[null,null,null,null,null,null,null,null,null,null,null,null,null,null,null,null,"うち地域外関係者",null,null,null,null,null,"名"]
[]
[null,null,null,null,"　日　付：","令和6年",null,null,"月",null,"日"]
[null,"ダブルクリックで写真を選択",null,null,null,null,null,null,null,null,null,null,"活動項目"]
[null,null,null,null,null,null,null,null,null,null,null,null,"取組内容",null,null,"活動場所"]
[null,null,null,null,null,null,null,null,null,null,null,null,null,null,null,"活動内容"]
[null,null,null,null,null,null,null,null,null,null,null,null,null,null,null,"実施時間"]
[null,null,null,null,null,null,null,null,null,null,null,null,null,null,null,"活動参加人数","構成員",null,null,null,null,null,"名"]
[null,null,null,null,null,null,null,null,null,null,null,null,null,null,null,null,"構成員以外",null,null,null,null,null,"名"]
[null,null,null,null,null,null,null,null,null,null,null,null,null,null,null,null,"合　計",null,null,null,null,{"$f":"SUM(V22:V23)","v":0},"名"]
[null,null,null,null,null,null,null,null,null,null,null,null,null,null,null,null,"うち地域外関係者",null,null,null,null,null,"名"]
[]
[null,null,null,null,"　日　付：","令和6年",null,null,"月",null,"日"]
[null,"ダブルクリックで写真を選択",null,null,null,null,null,null,null,null,null,null,"活動項目"]
[null,null,null,null,null,null,null,null,null,null,null,null,"取組内容",null,null,"活動場所"]
[null,null,null,null,null,null,null,null,null,null,null,null,null,null,null,"活動内容"]
[null,null,null,null,null,null,null,null,null,null,null,null,null,null,null,"実施時間"]
[null,null,null,null,null,null,null,null,null,null,null,null,null,null,null,"活動参加人数","構成員",null,null,null,null,null,"名"]
[null,null,null,null,null,null,null,null,null,null,null,null,null,null,null,null,"構成員以外",null,null,null,null,null,"名"]
[null,null,null,null,null,null,null,null,null,null,null,null,null,null,null,null,"合　計",null,null,null,null,{"$f":"SUM(V32:V33)","v":0},"名"]
[null,null,null,null,null,null,null,null,null,null,null,null,null,null,null,null,"うち地域外関係者",null,null,null,null,null,"名"]
[]
[null,null,null,null,"　日　付：","令和6年",null,null,"月",null,"日"]
[null,"ダブルクリックで写真を選択",null,null,null,null,null,null,null,null,null,null,"活動項目"]
[null,null,null,null,null,null,null,null,null,null,null,null,"取組内容",null,null,"活動場所"]
[null,null,null,null,null,null,null,null,null,null,null,null,null,null,null,"活動内容"]
[null,null,null,null,null,null,null,null,null,null,null,null,null,null,null,"実施時間"]
[null,null,null,null,null,null,null,null,null,null,null,null,null,null,null,"活動参加人数","構成員",null,null,null,null,null,"名"]
[null,null,null,null,null,null,null,null,null,null,null,null,null,null,null,null,"構成員以外",null,null,null,null,null,"名"]
[null,null,null,null,null,null,null,null,null,null,null,null,null,null,null,null,"合　計",null,null,null,null,{"$f":"SUM(V42:V43)","v":0},"名"]
[null,null,null,null,null,null,null,null,null,null,null,null,null,null,null,null,"うち地域外関係者",null,null,null,null,null,"名"]
[null,"活動項目"]
[null,"①：活動推進費"]
[null,"②：地域環境保全タイプ（里山林保全）"]
[null,"③：地域環境保全タイプ（侵入竹除去・竹林整備）"]
[null,"④：森林資源利用タイプ　　　"]
[null,"⑤：森林機能強化タイプ　"]
[null,"⑥：関係人口創出・維持タイプ"]
[]
[null,"撮影者含む"]
[null,"　　　　　"]

{"sheet":"集合写真（様式第18号）13","index":2,"n_rows":55,"n_cols":23,"rows_kept":55,"cut":false,"hidden":false,"merged":[[45,15,45,20],[40,21,40,24],[41,15,44,15],[41,16,41,20],[42,16,42,20],[43,16,43,20],[43,23,43,24],[44,16,44,20],[33,16,33,20],[33,23,33,24],[34,16,34,20],[36,5,36,6],[37,1,44,10],[37,12,37,14],[37,15,37,24],[38,12,44,14],[38,15,38,20],[38,21,38,24],[39,15,39,20],[39,21,39,24],[40,15,40,20],[23,23,23,24],[24,16,24,20],[26,5,26,6],[27,1,34,10],[27,12,27,14],[27,15,27,24],[28,12,34,14],[28,15,28,20],[28,21,28,24],[29,15,29,20],[29,21,29,24],[30,15,30,20],[30,21,30,24],[31,15,34,15],[31,16,31,20],[32,16,32,20],[14,16,14,20],[16,5,16,6],[17,1,24,10],[17,12,17,14],[17,15,17,24],[18,12,24,14],[18,15,18,20],[18,21,18,24],[19,15,19,20],[19,21,19,24],[20,15,20,20],[20,21,20,24],[21,15,24,15],[21,16,21,20],[22,16,22,20],[23,16,23,20],[6,5,6,6],[7,1,14,10],[7,12,7,14],[7,15,7,24],[8,12,14,14],[8,15,8,20],[8,21,8,24],[9,15,9,20],[9,21,9,24],[10,15,10,20],[10,21,10,24],[11,15,14,15],[11,16,11,20],[12,16,12,20],[13,16,13,20],[13,23,13,24],[0,1,0,7],[2,1,2,24],[4,15,4,17],[4,18,4,24],[5,15,5,17],[5,18,5,24]]}
[null,"（別紙３　様式第18号）"]
[null,"令和6年度　森林・山村多面的機能発揮対策交付金"]
[null,"活動記録兼作業写真整理帳（活動日毎の集合写真）"]
[]
[null,null,null,null,null,null,null,null,null,null,null,null,null,null,null,"№：",null,null,{"$f":"'集合写真（様式第18号）11'!S5:Y5+2","v":13}]
[null,null,null,null,null,null,null,null,null,null,null,null,null,null,null,"組織名：",null,null,{"$f":"'集合写真（様式第18号）11'!S6:Y6","v":0}]
[null,null,null,null,"　日　付：","令和6年",null,null,"月",null,"日"]
[null,"ダブルクリックで写真を選択",null,null,null,null,null,null,null,null,null,null,"活動項目"]
[null,null,null,null,null,null,null,null,null,null,null,null,"取組内容",null,null,"活動場所"]
[null,null,null,null,null,null,null,null,null,null,null,null,null,null,null,"活動内容"]
[null,null,null,null,null,null,null,null,null,null,null,null,null,null,null,"実施時間"]
[null,null,null,null,null,null,null,null,null,null,null,null,null,null,null,"活動参加人数","構成員",null,null,null,null,null,"名"]
[null,null,null,null,null,null,null,null,null,null,null,null,null,null,null,null,"構成員以外",null,null,null,null,null,"名"]
[null,null,null,null,null,null,null,null,null,null,null,null,null,null,null,null,"合　計",null,null,null,null,{"$f":"SUM(V12:V13)","v":0},"名"]
[null,null,null,null,null,null,null,null,null,null,null,null,null,null,null,null,"うち地域外関係者",null,null,null,null,null,"名"]
[]
[null,null,null,null,"　日　付：","令和6年",null,null,"月",null,"日"]
[null,"ダブルクリックで写真を選択",null,null,null,null,null,null,null,null,null,null,"活動項目"]
[null,null,null,null,null,null,null,null,null,null,null,null,"取組内容",null,null,"活動場所"]
[null,null,null,null,null,null,null,null,null,null,null,null,null,null,null,"活動内容"]
[null,null,null,null,null,null,null,null,null,null,null,null,null,null,null,"実施時間"]
[null,null,null,null,null,null,null,null,null,null,null,null,null,null,null,"活動参加人数","構成員",null,null,null,null,null,"名"]
[null,null,null,null,null,null,null,null,null,null,null,null,null,null,null,null,"構成員以外",null,null,null,null,null,"名"]
[null,null,null,null,null,null,null,null,null,null,null,null,null,null,null,null,"合　計",null,null,null,null,{"$f":"SUM(V22:V23)","v":0},"名"]
[null,null,null,null,null,null,null,null,null,null,null,null,null,null,null,null,"うち地域外関係者",null,null,null,null,null,"名"]
[]
[null,null,null,null,"　日　付：","令和6年",null,null,"月",null,"日"]
[null,"ダブルクリックで写真を選択",null,null,null,null,null,null,null,null,null,null,"活動項目"]
[null,null,null,null,null,null,null,null,null,null,null,null,"取組内容",null,null,"活動場所"]
[null,null,null,null,null,null,null,null,null,null,null,null,null,null,null,"活動内容"]
[null,null,null,null,null,null,null,null,null,null,null,null,null,null,null,"実施時間"]
[null,null,null,null,null,null,null,null,null,null,null,null,null,null,null,"活動参加人数","構成員",null,null,null,null,null,"名"]
[null,null,null,null,null,null,null,null,null,null,null,null,null,null,null,null,"構成員以外",null,null,null,null,null,"名"]
[null,null,null,null,null,null,null,null,null,null,null,null,null,null,null,null,"合　計",null,null,null,null,{"$f":"SUM(V32:V33)","v":0},"名"]
[null,null,null,null,null,null,null,null,null,null,null,null,null,null,null,null,"うち地域外関係者",null,null,null,null,null,"名"]
[]
[null,null,null,null,"　日　付：","令和6年",null,null,"月",null,"日"]
[null,"ダブルクリックで写真を選択",null,null,null,null,null,null,null,null,null,null,"活動項目"]
[null,null,null,null,null,null,null,null,null,null,null,null,"取組内容",null,null,"活動場所"]
[null,null,null,null,null,null,null,null,null,null,null,null,null,null,null,"活動内容"]
[null,null,null,null,null,null,null,null,null,null,null,null,null,null,null,"実施時間"]
[null,null,null,null,null,null,null,null,null,null,null,null,null,null,null,"活動参加人数","構成員",null,null,null,null,null,"名"]
[null,null,null,null,null,null,null,null,null,null,null,null,null,null,null,null,"構成員以外",null,null,null,null,null,"名"]
[null,null,null,null,null,null,null,null,null,null,null,null,null,null,null,null,"合　計",null,null,null,null,{"$f":"SUM(V42:V43)","v":0},"名"]
[null,null,null,null,null,null,null,null,null,null,null,null,null,null,null,null,"うち地域外関係者",null,null,null,null,null,"名"]
[null,"活動項目"]
[null,"①：活動推進費"]
[null,"②：地域環境保全タイプ（里山林保全）"]
[null,"③：地域環境保全タイプ（侵入竹除去・竹林整備）"]
[null,"④：森林資源利用タイプ　　　"]
[null,"⑤：森林機能強化タイプ　"]
[null,"⑥：関係人口創出・維持タイプ"]
[]
[null,"撮影者含む"]
[null,"　　　　　"]

{"sheet":"集合写真（様式第18号）14","index":3,"n_rows":55,"n_cols":23,"rows_kept":55,"cut":false,"hidden":false,"merged":[[45,15,45,20],[40,21,40,24],[41,15,44,15],[41,16,41,20],[42,16,42,20],[43,16,43,20],[43,23,43,24],[44,16,44,20],[33,16,33,20],[33,23,33,24],[34,16,34,20],[36,5,36,6],[37,1,44,10],[37,12,37,14],[37,15,37,24],[38,12,44,14],[38,15,38,20],[38,21,38,24],[39,15,39,20],[39,21,39,24],[40,15,40,20],[23,23,23,24],[24,16,24,20],[26,5,26,6],[27,1,34,10],[27,12,27,14],[27,15,27,24],[28,12,34,14],[28,15,28,20],[28,21,28,24],[29,15,29,20],[29,21,29,24],[30,15,30,20],[30,21,30,24],[31,15,34,15],[31,16,31,20],[32,16,32,20],[14,16,14,20],[16,5,16,6],[17,1,24,10],[17,12,17,14],[17,15,17,24],[18,12,24,14],[18,15,18,20],[18,21,18,24],[19,15,19,20],[19,21,19,24],[20,15,20,20],[20,21,20,24],[21,15,24,15],[21,16,21,20],[22,16,22,20],[23,16,23,20],[6,5,6,6],[7,1,14,10],[7,12,7,14],[7,15,7,24],[8,12,14,14],[8,15,8,20],[8,21,8,24],[9,15,9,20],[9,21,9,24],[10,15,10,20],[10,21,10,24],[11,15,14,15],[11,16,11,20],[12,16,12,20],[13,16,13,20],[13,23,13,24],[0,1,0,7],[2,1,2,24],[4,15,4,17],[4,18,4,24],[5,15,5,17],[5,18,5,24]]}
[null,"（別紙３　様式第18号）"]
[null,"令和6年度　森林・山村多面的機能発揮対策交付金"]
[null,"活動記録兼作業写真整理帳（活動日毎の集合写真）"]
[]
[null,null,null,null,null,null,null,null,null,null,null,null,null,null,null,"№：",null,null,{"$f":"'集合写真（様式第18号）11'!S5:Y5+3","v":14}]
[null,null,null,null,null,null,null,null,null,null,null,null,null,null,null,"組織名：",null,null,{"$f":"'集合写真（様式第18号）11'!S6:Y6","v":0}]
[null,null,null,null,"　日　付：","令和6年",null,null,"月",null,"日"]
[null,"ダブルクリックで写真を選択",null,null,null,null,null,null,null,null,null,null,"活動項目"]
[null,null,null,null,null,null,null,null,null,null,null,null,"取組内容",null,null,"活動場所"]
[null,null,null,null,null,null,null,null,null,null,null,null,null,null,null,"活動内容"]
[null,null,null,null,null,null,null,null,null,null,null,null,null,null,null,"実施時間"]
[null,null,null,null,null,null,null,null,null,null,null,null,null,null,null,"活動参加人数","構成員",null,null,null,null,null,"名"]
[null,null,null,null,null,null,null,null,null,null,null,null,null,null,null,null,"構成員以外",null,null,null,null,null,"名"]
[null,null,null,null,null,null,null,null,null,null,null,null,null,null,null,null,"合　計",null,null,null,null,{"$f":"SUM(V12:V13)","v":0},"名"]
[null,null,null,null,null,null,null,null,null,null,null,null,null,null,null,null,"うち地域外関係者",null,null,null,null,null,"名"]
[]
[null,null,null,null,"　日　付：","令和6年",null,null,"月",null,"日"]
[null,"ダブルクリックで写真を選択",null,null,null,null,null,null,null,null,null,null,"活動項目"]
[null,null,null,null,null,null,null,null,null,null,null,null,"取組内容",null,null,"活動場所"]
[null,null,null,null,null,null,null,null,null,null,null,null,null,null,null,"活動内容"]
[null,null,null,null,null,null,null,null,null,null,null,null,null,null,null,"実施時間"]
[null,null,null,null,null,null,null,null,null,null,null,null,null,null,null,"活動参加人数","構成員",null,null,null,null,null,"名"]
[null,null,null,null,null,null,null,null,null,null,null,null,null,null,null,null,"構成員以外",null,null,null,null,null,"名"]
[null,null,null,null,null,null,null,null,null,null,null,null,null,null,null,null,"合　計",null,null,null,null,{"$f":"SUM(V22:V23)","v":0},"名"]
[null,null,null,null,null,null,null,null,null,null,null,null,null,null,null,null,"うち地域外関係者",null,null,null,null,null,"名"]
[]
[null,null,null,null,"　日　付：","令和6年",null,null,"月",null,"日"]
[null,"ダブルクリックで写真を選択",null,null,null,null,null,null,null,null,null,null,"活動項目"]
[null,null,null,null,null,null,null,null,null,null,null,null,"取組内容",null,null,"活動場所"]
[null,null,null,null,null,null,null,null,null,null,null,null,null,null,null,"活動内容"]
[null,null,null,null,null,null,null,null,null,null,null,null,null,null,null,"実施時間"]
[null,null,null,null,null,null,null,null,null,null,null,null,null,null,null,"活動参加人数","構成員",null,null,null,null,null,"名"]
[null,null,null,null,null,null,null,null,null,null,null,null,null,null,null,null,"構成員以外",null,null,null,null,null,"名"]
[null,null,null,null,null,null,null,null,null,null,null,null,null,null,null,null,"合　計",null,null,null,null,{"$f":"SUM(V32:V33)","v":0},"名"]
[null,null,null,null,null,null,null,null,null,null,null,null,null,null,null,null,"うち地域外関係者",null,null,null,null,null,"名"]
[]
[null,null,null,null,"　日　付：","令和6年",null,null,"月",null,"日"]
[null,"ダブルクリックで写真を選択",null,null,null,null,null,null,null,null,null,null,"活動項目"]
[null,null,null,null,null,null,null,null,null,null,null,null,"取組内容",null,null,"活動場所"]
[null,null,null,null,null,null,null,null,null,null,null,null,null,null,null,"活動内容"]
[null,null,null,null,null,null,null,null,null,null,null,null,null,null,null,"実施時間"]
[null,null,null,null,null,null,null,null,null,null,null,null,null,null,null,"活動参加人数","構成員",null,null,null,null,null,"名"]
[null,null,null,null,null,null,null,null,null,null,null,null,null,null,null,null,"構成員以外",null,null,null,null,null,"名"]
[null,null,null,null,null,null,null,null,null,null,null,null,null,null,null,null,"合　計",null,null,null,null,{"$f":"SUM(V42:V43)","v":0},"名"]
[null,null,null,null,null,null,null,null,null,null,null,null,null,null,null,null,"うち地域外関係者",null,null,null,null,null,"名"]
[null,"活動項目"]
[null,"①：活動推進費"]
[null,"②：地域環境保全タイプ（里山林保全）"]
[null,"③：地域環境保全タイプ（侵入竹除去・竹林整備）"]
[null,"④：森林資源利用タイプ　　　"]
[null,"⑤：森林機能強化タイプ　"]
[null,"⑥：関係人口創出・維持タイプ"]
[]
[null,"撮影者含む"]
[null,"　　　　　"]

{"sheet":"集合写真（様式第18号）15","index":4,"n_rows":55,"n_cols":23,"rows_kept":55,"cut":false,"hidden":false,"merged":[[45,15,45,20],[40,21,40,24],[41,15,44,15],[41,16,41,20],[42,16,42,20],[43,16,43,20],[43,23,43,24],[44,16,44,20],[33,16,33,20],[33,23,33,24],[34,16,34,20],[36,5,36,6],[37,1,44,10],[37,12,37,14],[37,15,37,24],[38,12,44,14],[38,15,38,20],[38,21,38,24],[39,15,39,20],[39,21,39,24],[40,15,40,20],[23,23,23,24],[24,16,24,20],[26,5,26,6],[27,1,34,10],[27,12,27,14],[27,15,27,24],[28,12,34,14],[28,15,28,20],[28,21,28,24],[29,15,29,20],[29,21,29,24],[30,15,30,20],[30,21,30,24],[31,15,34,15],[31,16,31,20],[32,16,32,20],[14,16,14,20],[16,5,16,6],[17,1,24,10],[17,12,17,14],[17,15,17,24],[18,12,24,14],[18,15,18,20],[18,21,18,24],[19,15,19,20],[19,21,19,24],[20,15,20,20],[20,21,20,24],[21,15,24,15],[21,16,21,20],[22,16,22,20],[23,16,23,20],[6,5,6,6],[7,1,14,10],[7,12,7,14],[7,15,7,24],[8,12,14,14],[8,15,8,20],[8,21,8,24],[9,15,9,20],[9,21,9,24],[10,15,10,20],[10,21,10,24],[11,15,14,15],[11,16,11,20],[12,16,12,20],[13,16,13,20],[13,23,13,24],[0,1,0,7],[2,1,2,24],[4,15,4,17],[4,18,4,24],[5,15,5,17],[5,18,5,24]]}
[null,"（別紙３　様式第18号）"]
[null,"令和6年度　森林・山村多面的機能発揮対策交付金"]
[null,"活動記録兼作業写真整理帳（活動日毎の集合写真）"]
[]
[null,null,null,null,null,null,null,null,null,null,null,null,null,null,null,"№：",null,null,{"$f":"'集合写真（様式第18号）11'!S5:Y5+4","v":15}]
[null,null,null,null,null,null,null,null,null,null,null,null,null,null,null,"組織名：",null,null,{"$f":"'集合写真（様式第18号）11'!S6:Y6","v":0}]
[null,null,null,null,"　日　付：","令和6年",null,null,"月",null,"日"]
[null,"ダブルクリックで写真を選択",null,null,null,null,null,null,null,null,null,null,"活動項目"]
[null,null,null,null,null,null,null,null,null,null,null,null,"取組内容",null,null,"活動場所"]
[null,null,null,null,null,null,null,null,null,null,null,null,null,null,null,"活動内容"]
[null,null,null,null,null,null,null,null,null,null,null,null,null,null,null,"実施時間"]
[null,null,null,null,null,null,null,null,null,null,null,null,null,null,null,"活動参加人数","構成員",null,null,null,null,null,"名"]
[null,null,null,null,null,null,null,null,null,null,null,null,null,null,null,null,"構成員以外",null,null,null,null,null,"名"]
[null,null,null,null,null,null,null,null,null,null,null,null,null,null,null,null,"合　計",null,null,null,null,{"$f":"SUM(V12:V13)","v":0},"名"]
[null,null,null,null,null,null,null,null,null,null,null,null,null,null,null,null,"うち地域外関係者",null,null,null,null,null,"名"]
[]
[null,null,null,null,"　日　付：","令和6年",null,null,"月",null,"日"]
[null,"ダブルクリックで写真を選択",null,null,null,null,null,null,null,null,null,null,"活動項目"]
[null,null,null,null,null,null,null,null,null,null,null,null,"取組内容",null,null,"活動場所"]
[null,null,null,null,null,null,null,null,null,null,null,null,null,null,null,"活動内容"]
[null,null,null,null,null,null,null,null,null,null,null,null,null,null,null,"実施時間"]
[null,null,null,null,null,null,null,null,null,null,null,null,null,null,null,"活動参加人数","構成員",null,null,null,null,null,"名"]
[null,null,null,null,null,null,null,null,null,null,null,null,null,null,null,null,"構成員以外",null,null,null,null,null,"名"]
[null,null,null,null,null,null,null,null,null,null,null,null,null,null,null,null,"合　計",null,null,null,null,{"$f":"SUM(V22:V23)","v":0},"名"]
[null,null,null,null,null,null,null,null,null,null,null,null,null,null,null,null,"うち地域外関係者",null,null,null,null,null,"名"]
[]
[null,null,null,null,"　日　付：","令和6年",null,null,"月",null,"日"]
[null,"ダブルクリックで写真を選択",null,null,null,null,null,null,null,null,null,null,"活動項目"]
[null,null,null,null,null,null,null,null,null,null,null,null,"取組内容",null,null,"活動場所"]
[null,null,null,null,null,null,null,null,null,null,null,null,null,null,null,"活動内容"]
[null,null,null,null,null,null,null,null,null,null,null,null,null,null,null,"実施時間"]
[null,null,null,null,null,null,null,null,null,null,null,null,null,null,null,"活動参加人数","構成員",null,null,null,null,null,"名"]
[null,null,null,null,null,null,null,null,null,null,null,null,null,null,null,null,"構成員以外",null,null,null,null,null,"名"]
[null,null,null,null,null,null,null,null,null,null,null,null,null,null,null,null,"合　計",null,null,null,null,{"$f":"SUM(V32:V33)","v":0},"名"]
[null,null,null,null,null,null,null,null,null,null,null,null,null,null,null,null,"うち地域外関係者",null,null,null,null,null,"名"]
[]
[null,null,null,null,"　日　付：","令和6年",null,null,"月",null,"日"]
[null,"ダブルクリックで写真を選択",null,null,null,null,null,null,null,null,null,null,"活動項目"]
[null,null,null,null,null,null,null,null,null,null,null,null,"取組内容",null,null,"活動場所"]
[null,null,null,null,null,null,null,null,null,null,null,null,null,null,null,"活動内容"]
[null,null,null,null,null,null,null,null,null,null,null,null,null,null,null,"実施時間"]
[null,null,null,null,null,null,null,null,null,null,null,null,null,null,null,"活動参加人数","構成員",null,null,null,null,null,"名"]
[null,null,null,null,null,null,null,null,null,null,null,null,null,null,null,null,"構成員以外",null,null,null,null,null,"名"]
[null,null,null,null,null,null,null,null,null,null,null,null,null,null,null,null,"合　計",null,null,null,null,{"$f":"SUM(V42:V43)","v":0},"名"]
[null,null,null,null,null,null,null,null,null,null,null,null,null,null,null,null,"うち地域外関係者",null,null,null,null,null,"名"]
[null,"活動項目"]
[null,"①：活動推進費"]
[null,"②：地域環境保全タイプ（里山林保全）"]
[null,"③：地域環境保全タイプ（侵入竹除去・竹林整備）"]
[null,"④：森林資源利用タイプ　　　"]
[null,"⑤：森林機能強化タイプ　"]
[null,"⑥：関係人口創出・維持タイプ"]
[]
[null,"撮影者含む"]
[null,"　　　　　"]